Cogmind - Beta 14 @@@ ROGUE MODE // 2024.10.19 @ 14:22:36 Player: saltine Result: Destroyed by as-94105 with Assembled Blade Performance ------------- Evolutions (0) 0 Regions Visited (4) 800 Robots Destroyed (4) 20 Value Destroyed (46) 46 Prototype IDs (25) 500 Alien Tech Used (0) 0 Bonus (300) 300 TOTAL SCORE: 1666 Bonus ------- Aligned with FarCom 300 Cogmind --------- Core Integrity 0/250 Matter 300/300 Energy 100/100 System Corruption 8% Temperature Cool (0) Movement Core (50) Location -9/Mines Parts ------- > --- POWER (1) -------- (None) > --- PROPULSION (2) --- (None) > --- UTILITY (2) ------ (None) > --- WEAPON (2) ------- (None) > --- INVENTORY (5) ---- High-capacity Storage Unit Lightpack 2.0 Mini Grenade Launcher Peak State ------------ > --- POWER ------------ Ion Engine > --- PROPULSION ------- Light Treads Light Treads > --- UTILITY ---------- High-capacity Storage Unit Shield Generator > --- WEAPON ----------- EM Shotgun EM Shotgun > --- INVENTORY -------- Ion Engine Large Storage Unit Lightpack 2.0 Heavy Assault Rifle Heavy Assault Rifle Heavy Assault Rifle Mini Grenade Launcher [Rating: 14] Favorites ----------- Power Ion Engine Engine Ion Engine Propulsion Light Treads Treads Light Treads Leg Aluminum Leg Utility Small Storage Unit Device Shield Generator Storage Small Storage Unit Processor Visual Processing Unit Hackware Hacking Suite Weapon EM Shotgun Energy Gun EM Shotgun Ballistic Gun Light Assault Rifle Build | -11 -10 -10 -10 -9 ------- Run | Yrd Mat Min Exi Min Slots Evolved . | . . . . . Power . | . . . . . Propulsion . | . . . . . Utility . | . . . . . Weapon . | . . . . . Parts Attached 11 | . 7 . 3 1 Power 1 | . 1 . . . Engine 1 | . 1 . . . Core . | . . . . . Reactor . | . . . . . Propulsion 2 | . 2 . . . Treads 2 | . 2 . . . Leg . | . . . . . Wheel . | . . . . . Hover . | . . . . . Flight . | . . . . . Utility 6 | . 2 . 3 1 Device 2 | . . . 1 1 Storage 2 | . . . 2 . Processor 1 | . 1 . . . Hackware 1 | . 1 . . . Protection . | . . . . . Artifact . | . . . . . Weapon 2 | . 2 . . . Energy Gun 2 | . 2 . . . Energy Cannon . | . . . . . Ballistic Gun . | . . . . . Ballistic Cannon . | . . . . . Launcher . | . . . . . Special Weapon . | . . . . . Impact Weapon . | . . . . . Slashing Weapon . | . . . . . Piercing Weapon . | . . . . . Special Melee Weapon . | . . . . . Unidentified Prototypes . | . . . . . Corrupted Parts 1 | . 1 . . . System Corruption 3 | . 3 . . . Parts Lost 4 | . . . . 4 Power . | . . . . . Propulsion 2 | . . . . 2 Utility 1 | . . . . 1 Weapon 1 | . . . . 1 Highest Loss Streak 4 | . . . . 4 To Critical Strikes . | . . . . . Average Slot Usage (%) 98 | . 97 100 100 91 Engine 13 | . 14 14 14 12 Treads 24 | . 12 28 28 26 Leg 3 | . 15 . . . Device 6 | . . . 9 12 Storage 13 | . 14 14 14 12 Processor 2 | . 10 . . . Hackware 5 | . 1 14 4 . Energy Gun 26 | . 20 28 28 26 Ballistic Gun 1 | . 7 . . . Peak Build Rating 14 | 6 12 12 14 14 Average Rating 11 | 6 9 12 12 13 On Entrance 10 | 6 6 12 12 14 Naked Turns 7 | . . . . 7 Heaviest Build 53 | 10 16 16 53 33 Greatest Support 40 | 20 40 40 40 40 Greatest Overweight (x) 1 | . . . 1 . Average Overweight (x) . | . . . . . Largest Inventory Capacity 20 | 8 8 8 20 15 Average Capacity 9 | 8 8 8 9 14 Most Carried 10 | 6 8 8 10 10 Average Carried 8 | 6 7 8 8 9 Final Capacity 15 | 8 8 8 15 5 Final Carried 10 | 6 8 8 10 5 Class Distribution -------------------- 100% | Mutant Dominant Class ---------------- Mutant | -10/Materials Mutant | -10/Mines Mutant | -10/Exiles Mutant | -9/Mines Resources | -11 -10 -10 -10 -9 ----------- Run | Yrd Mat Min Exi Min Matter Collected 447 | 200 18 168 45 16 Remotely . | . . . . . Salvage Created 55 | . 18 37 . . Parts 6 | . 1 5 . . Haulers Intercepted . | . . . . . Recyclers Shooed . | . . . . . Parts Field Recycled . | . . . . . Retrieved Matter . | . . . . . Parts Self-Destructed . | . . . . . Prevented . | . . . . . Kills | -11 -10 -10 -10 -9 ------- Run | Yrd Mat Min Exi Min Combat Hostiles Destroyed 3 | . . 3 . . Guns 2 | . . 2 . . AOE 1 | . . 1 . . Classes Destroyed 2 | . 1 1 . . Operator 1 | . 1 . . . Swarmer 3 | . . 3 . . Best Kill Streak 3 | . 1 3 . . Combat Bots Only 3 | . . 3 . . Max Kills in Single Turn 1 | . 1 1 . . Gunslinging . | . . . . . Exploded 1 | . . 1 . . Melee . | . . . . . Uniques/NPCs Destroyed . | . . . . . Combat | -11 -10 -10 -10 -9 -------- Run | Yrd Mat Min Exi Min Hostile Shots Fired 55 | . 3 14 . 38 Missed 12 | . 2 4 . 6 Damage Taken 679 | . 41 107 . 531 Core 250 | . 8 30 . 212 Absorbed by Shields 36 | . . . . 36 Core Remaining (%) 100 | 100 . . . . Volleys Fired 7 | . 2 5 . . Largest 2 | . 2 2 . . Hottest 90 | . 90 90 . . Shots Fired 14 | . 4 10 . . Gun 14 | . 4 10 . . Cannon . | . . . . . Launcher . | . . . . . Special . | . . . . . Kinetic . | . . . . . Thermal . | . . . . . Explosive . | . . . . . Electromagnetic 14 | . 4 10 . . Robot Hit Streak 5 | . 5 2 . . Robot Miss Streak 6 | . 2 6 . . Penetration Max . | . . . . . Secondary Targets . | . . . . . Shots Hit Robots 9 | . 4 5 . . Core Hits 7 | . 2 4 . 1 Critical Kills . | . . . . . Critical Parts Destroyed . | . . . . . Critical Strikes . | . . . . . Melee Attacks . | . . . . . Impact . | . . . . . Slashing . | . . . . . Piercing . | . . . . . Sneak Attacks . | . . . . . Combat Hostiles . | . . . . . Follow-up Attacks . | . . . . . Damage Inflicted 247 | . 113 104 . 30 Guns 110 | . 70 40 . . Cannons . | . . . . . Explosions 85 | . 21 64 . . Melee . | . . . . . Ramming 52 | . 22 . . 30 Kinetic . | . . . . . Thermal 85 | . 21 64 . . Explosive . | . . . . . Electromagnetic 110 | . 70 40 . . Impact . | . . . . . Slashing . | . . . . . Piercing . | . . . . . Highest Corruption 8 | . 3 3 3 8 Average Corruption 3 | . 3 3 3 3 Corruption Purged . | . . . . . Corruption Blocked . | . . . . . Effects 16 | . 1 3 8 4 Message Errors 2 | . . . 1 1 Matter Fused 3 | . 1 . 2 . Heat Flow Errors 2 | . . 1 1 . Energy Discharges 3 | . . . 1 2 Parts Rejected 1 | . . . . 1 Parts Fused 1 | . . 1 . . Data Loss (minor) 3 | . . 1 2 . Data Loss (major) 1 | . . . 1 . Overload Shots . | . . . . . Overflow Damage . | . . . . . Projectiles . | . . . . . Explosions . | . . . . . Melee . | . . . . . Knockbacks . | . . . . . Impact . | . . . . . Kinetic . | . . . . . Secondary . | . . . . . Self-Inflicted Damage 81 | . 33 34 . 14 Shots 2 | . 1 1 . . Rammed 7 | . 2 . . 5 Targets Rammed 8 | . 3 . . 5 Kicked 1 | . 1 . . . Crushed . | . . . . . Highest Temperature 275 | . 72 275 174 15 Average Temperature 90 | . 38 110 90 6 Received Heat Transfer 178 | . . . . 178 Siege Activations . | . . . . . Robots Corrupted . | . . . . . Combat Hostiles . | . . . . . Parts Fried . | . . . . . Impact Corruptions . | . . . . . Robots Melted . | . . . . . Combat Hostiles . | . . . . . Parts Melted . | . . . . . Heat Transferred 100 | . 50 50 . . Parts Sabotaged . | . . . . . Parts Stolen . | . . . . . Parts Stripped . | . . . . . Power Chain Reactions 2 | . 1 1 . . Alert | -11 -10 -10 -10 -9 ------- Run | Yrd Mat Min Exi Min Peak Influence 99 | . 38 99 . 15 Initial 14 | . . 14 . . Average 38 | . 6 96 . . Maximum Alert Level . | . . . . . Low Security (%) 100 | 100 100 100 . 100 Level 1 . | . . . . . Level 2 . | . . . . . Level 3 . | . . . . . Level 4 . | . . . . . Level 5 . | . . . . . High Security . | . . . . . Max Security . | . . . . . Squads Dispatched 1 | . 1 . . . Investigation . | . . . . . Extermination . | . . . . . Reinforcement 1 | . 1 . . . Assault . | . . . . . Garrison . | . . . . . Intercept . | . . . . . Searches Triggered . | . . . . . Construction Impeded . | . . . . . Haulers Reinforced . | . . . . . Active Scanning Responses . | . . . . . Cargo Convoy Interrupts . | . . . . . Stealth | -11 -10 -10 -10 -9 --------- Run | Yrd Mat Min Exi Min Distress Signals . | . . . . . Communications Jammed . | . . . . . Distress Signals . | . . . . . Times Spotted 29 | . 6 3 . 20 Peak Tracking Total 13 | . 4 3 . 13 Tactical Retreats 1 | . . . . 1 Traps | -11 -10 -10 -10 -9 ------- Run | Yrd Mat Min Exi Min Traps Triggered . | . . . . . Indirectly . | . . . . . Trap Hack Attempts . | . . . . . Triggered . | . . . . . Disarmed . | . . . . . Reprogrammed . | . . . . . Reused . | . . . . . Traps Extracted . | . . . . . Installed . | . . . . . Triggered . | . . . . . Machines | -11 -10 -10 -10 -9 ---------- Run | Yrd Mat Min Exi Min Machines Disabled . | . . . . . Max in Single Turn . | . . . . . Machines Repaired . | . . . . . Machines Dismantled . | . . . . . Machines Sabotaged . | . . . . . Overloaded Fab Kills . | . . . . . Hacking | -11 -10 -10 -10 -9 --------- Run | Yrd Mat Min Exi Min Machines Accessed 5 | . 3 . 2 . Terminals 1 | . 1 . . . Fabricators . | . . . . . Repair Stations . | . . . . . Recycling Units 2 | . 2 . . . Scanalyzers . | . . . . . Garrison Access . | . . . . . Total Hacks 9 | . 7 . 2 . Successful 5 | . 3 . 2 . Failed 4 | . 4 . . . Catastrophic . | . . . . . Database Lockouts . | . . . . . Manual 2 | . 1 . 1 . Terminals 1 | . 1 . . . Fabricators . | . . . . . Repair Stations . | . . . . . Recycling Units 6 | . 6 . . . Scanalyzers . | . . . . . Garrison Access . | . . . . . Terminal Hacks 3 | . 1 . 2 . Record 1 | . . . 1 . Prototype ID Bank 1 | . 1 . . . Derelict Proto ID Bank 1 | . . . 1 . Fabricator Hacks . | . . . . . Repair Station Hacks . | . . . . . Recycling Unit Hacks 2 | . 2 . . . Retrieve Components 2 | . 2 . . . Scanalyzer . | . . . . . Garrison Access Hacks . | . . . . . Unauthorized Hacks . | . . . . . Terminals . | . . . . . Fabricators . | . . . . . Repair Stations . | . . . . . Recycling Units . | . . . . . Scanalyzers . | . . . . . Garrison Access . | . . . . . Data Cores Recovered . | . . . . . Used . | . . . . . Hacking Detections 3 | . 3 . . . Full Trace Events . | . . . . . Feedback Events . | . . . . . Feedback Blocked . | . . . . . Robot Schematics Acquired . | . . . . . Robots Built . | . . . . . Authchips . | . . . . . Time . | . . . . . Total Robot Build Rating . | . . . . . Part Schematics Acquired . | . . . . . Parts Built . | . . . . . Authchips . | . . . . . Time . | . . . . . Total Part Build Rating . | . . . . . Parts Repaired . | . . . . . Time . | . . . . . Parts Recycled . | . . . . . Recycled Matter . | . . . . . Retrieved Matter . | . . . . . Retrieved Components 7 | . 7 . . . Parts Scanalyzed . | . . . . . Part Schematics Acquired . | . . . . . Parts Damaged . | . . . . . Bothacking | -11 -10 -10 -10 -9 ------------ Run | Yrd Mat Min Exi Min Used RIF Installer . | . . . . . Robots Hacked . | . . . . . Non-combat . | . . . . . Combat . | . . . . . Robot Hacks Applied . | . . . . . Relay Couplers Released . | . . . . . Fabnet Peak Effective % . | . . . . . Robots Rewired . | . . . . . Allies Hacked . | . . . . . Hacks Repelled . | . . . . . Allies | -11 -10 -10 -10 -9 -------- Run | Yrd Mat Min Exi Min Total Allies . | . . . . . Largest Group . | . . . . . Highest-Rated Group . | . . . . . Highest-Rated Ally . | . . . . . Total Orders . | . . . . . Ally Attacks . | . . . . . Total Damage . | . . . . . Kills . | . . . . . Allies Corrupted . | . . . . . Allies Melted . | . . . . . Intel | -11 -10 -10 -10 -9 ------- Run | Yrd Mat Min Exi Min Robot Analysis Total . | . . . . . Derelict Logs Recovered . | . . . . . Drone Launches . | . . . . . Drone Recoveries . | . . . . . Exploration | -11 -10 -10 -10 -9 ------------- Run | Yrd Mat Min Exi Min Turns Passed 1282 | 6 264 255 592 165 Spaces Moved 803 | 6 174 151 363 109 Core 16 | . . . . 16 Treads 669 | . 62 151 363 93 Legs 118 | 6 112 . . . Wheels . | . . . . . Hover . | . . . . . Flight . | . . . . . Fastest Speed 50 | 120 120 160 160 50 Average Speed 152 | 120 134 160 161 143 Slowest Speed 240 | 120 160 160 240 160 Overloaded Moves . | . . . . . Propulsion Burnouts . | . . . . . Robots Hopped . | . . . . . Cave-ins Triggered . | . . . . . Exploration Rate (%) 35 | 2 40 40 71 25 Regions Visited 4 Branch Regions 3 Pre-discovered Areas 1 | . . . 1 . Known Exits Taken . | . . . . . Unknown Exits Taken 4 | 1 1 1 1 . Scrap Searched 1 | . . 1 . . Spaces Dug . | . . . . . Terrain Destroyed 3 | . 3 . . . Melee . | . . . . . Projectile . | . . . . . AOE 3 | . 3 . . . Terrain Rammed . | . . . . . Walls Destroyed . | . . . . . Machines Disabled . | . . . . . Actions | -11 -10 -10 -10 -9 --------- Run | Yrd Mat Min Exi Min Total 851 | 5 201 155 372 118 Wait . | . . . . . Move 799 | 5 173 150 362 109 Hop . | . . . . . Pick Up 10 | . 7 . 3 . Fast Attach 5 | . 4 . . 1 Attach 1 | . . . 1 . Detach . | . . . . . Swap 5 | . 3 . 2 . Drop 16 | . 9 . 4 3 Fire 7 | . 2 5 . . Melee . | . . . . . Ram 5 | . . . . 5 Kick 1 | . 1 . . . Crush 2 | . 2 . . . Escape Stasis . | . . . . . Rewire . | . . . . . Trap . | . . . . . Miscellaneous . | . . . . . Route ------- -11/Scrapyard -10/Materials (discovered 2 exits: [*Mat] / [*Min]) -10/Mines (discovered 2 exits: [*Mat] / *Exi) -10/Exiles -9/Mines History --------- Turn | Location | Event 1 | -11/Scrapyard | Discovered new exit (range 3) 7 | -11/Scrapyard | Entered Materials 130 | -10/Materials | Discovered new exit (range 3) 255 | -10/Materials | Discovered new exit (range 10) 271 | -10/Materials | Entered Mines 307 | -10/Mines | Build established: Mutant 338 | -10/Mines | Discovered new exit (range 8) 518 | -10/Mines | Deemed a non-threat by the Exiles lab entrance 520 | -10/Mines | Discovered new exit (range 5) 526 | -10/Mines | Entered Exiles 565 | -10/Exiles | Met 8R-AWN 592 | -10/Exiles | Met EX-HEX 645 | -10/Exiles | Met EX-BIN 667 | -10/Exiles | Aligned with FarCom system 669 | -10/Exiles | Given EX-Vault access code 709 | -10/Exiles | Opened EX-Vault 721 | -10/Exiles | Found Lightpack 2.0 799 | -10/Exiles | Warned to stay clear of 0b10 Research branches 848 | -10/Exiles | Met EX-DEC 858 | -10/Exiles | Learned location of Zion (-7) 1097 | -10/Exiles | Discovered new exit (range 14) 1118 | -10/Exiles | Left Exiles lab with Lightpack 2.0 1118 | -10/Exiles | Entered Mines 1227 | -9/Mines | Assembled infested the area 1232 | -9/Mines | Assisted by a Guerilla fighting off Assembled 1278 | -9/Mines | Core integrity fell below 50% 1282 | -9/Mines | Core integrity fell below 20% 1283 | -9/Mines | Destroyed by as-94105 with Assembled Blade Last Messages --------------- 01267_ System corrupted by crushing effect (+5). 01267_ C-30 ARC bursts open, deploying its payload. 01267_ D-53 Grenadier unfolds itself. 01267_ Acquired 16 matter. 01269_ Dropped Ion Engine. 01269_ Dropped Lrg. Storage Unit. 01270_ Dropped EM Shotgun. 01272_ as-22230 destroyed. 01272_ as-84576 destroyed. 01272_ as-55809 destroyed. 01272_ as-05814 destroyed. 01272_ as-63500 destroyed. 01274_ EM Shotgun destroyed. 01275_ Slammed into as-06165. 01275_ Lgt. Treads destroyed. 01276_ Slammed into as-35871. 01280_ Slammed into as-83461. 01281_ Slammed into as-94105. 01281_ Destabilizing: Core damaged (-2). 01282_ Slammed into as-94105. Map ----- +----------------------------------------------------+ | ??? ????????????????????## ##??????????? | | ?????????????????????????## #???????????? | | ????????????????????????## %##??????????? | | ???????????????????????## #??????????? | | ???????????????????????# % ##?????????? | | ???????????????????????# #?????????? | | ??????????????????????## #?????????? | | ??????????????????????# [[ #?????????? | | ??????????????????????# !*[ #?????????? | | ??????????????????????? !* #?????????? | | ????????????????????????# d #??????????? | | ?????????????????????????## d#???????????? | | ??????????????????????????# #???????????? | | ??????????????????????????# #???????????? | | ??????????????????????????# #???????????? | | ??????????????????????????# #???????????? | | ???????????????????###????# #???????????? | | ??????????????????## #???# #???????????? | | ?????????????????## ##?# #???????????? | | ?????????????????# ###% #???????????? | | ?????????????????# $ % #???????????? | | ?????????????????## aa #???????????? | | ??????????????????# ##a####???????????? | | ??????????????????## #?#a#??????????????? | | ???????????????????###??#%#??????????????? | | ????????????????????????#@#??????????????? | | ????????????????????????#a#??????????????? | | ????????????????????????# #??????????????? | | ????????????????????????# #??????????????? | | ????????????????????????#a#??????????????? | | ????????????????????????#a#??????????????? | | ???????????????????????? #??????????????? | | ????????????????????????###??????????????? | | ?????????????????????????????????????????? | | ?????????????????????????????????????????? | | ?????????????????????????????????????????? | | ?????????????????????????????????????????? | | ?????????????????????????????????????????? | | ?????????????????????????????????????????? | | ?????????????????????????????????????????? | | ?????????????????????????????????????????? | | ?????????????????????????????????????????? | | ?????????????????????????????????????????? | | ?????????????????????????????????????????? | | ?????????????????????????????????????????? | | ?????????????????????????????????????????? | | ?????????????????????????????????????????? | | ?????????????????????????????????????????? | | ?????????????????????????????????????????? | | ?????????????????????????????????????????? | +----------------------------------------------------+ Best States ------------- Heat Dissipation 25 Energy Generation 10 Energy Capacity 250 Matter Stores 300 Matter Capacity 300 Sight Range 18 Terrain Scan Density 10 Evasion (%) 55 Recoil Reduction 2 Offensive Hacking 10 Item Schematics ----------------- None Robot Schematics ------------------ None Fabricated ------------ Nothing Alien Tech Used ----------------- None Achievements -------------- None Challenges ------------ None Game ------ Seed PrecisionScanChainsaw Manual? 0 Play Time 00:11:18 Cumulative 279.3 hours Start 2024.10.19 @ 14:12:02 End 2024.10.19 @ 14:22:36 Sessions 1 Manual Loads 0 Difficulty Rogue Special Mode None Game No. 159 Rogue 159 Adventurer 0 Explorer 0 Win Type - Total 15 Types 3/2/6/2/1/0/1/0/0 Lore% 80 Gallery% 82 Achievement% 72 Wizard Run 0 Options --------- Layout 0 ASCII 0 Keyboard 0 Movement Arrows Keybinds 0 Fullscreen 2 Font 18/SmallcapsGlow Map View 76x50 Zoom Use 0% Tactical HUD 1 Map Filters NONE Filters NONE Steam 1 RUN: df0c85af-c498-4907-bee5-3e90f555a02e